{"text_format":"1","workbook":"xlsx","n_sheets":11,"sheets":["INSTRUCTIVO","CRITERIO 1 - LIDERAZGO","CRITERIO 2 D. DE LAS PERSONAS","CRITERIO 3 CLIENTE EXTERNO","CRITERIO 4 GESTION PROCESOS","CRITERIO 5 RESULTADOS","RESUMEN DE EVALUACION","VIENDO RESULTADOS","FORMA","CONTENIDO","     "],"not_rendered":{"charts":1,"images":6,"macros":1,"external_links":0,"defined_names":11,"comments":0,"pivot_tables":0},"unopened":[],"bounds":{"document_bytes":16777216,"sheet_cells":100000,"rows_first":2000,"rows_last":500,"rows_between":2000,"halvings":0,"cell_chars":16384,"cell_head_chars":4096},"cells_cut":0,"cells_raw":0,"read":"whole","date_system":"1900"}

{"sheet":"INSTRUCTIVO","index":0,"n_rows":25,"n_cols":5,"rows_kept":25,"cut":false,"hidden":false,"merged":[[2,3,4,8],[13,0,13,2],[14,0,27,2],[24,4,24,8],[25,4,25,8],[26,4,26,7]]}
[]
[]
[]
[]
[]
[]
[]
[]
[]
[]
[]
[]
[]
["ATENCIÓN"]
["       Este libro contiene macros que necesitan ejecutarse al finalizar su autoevaluación.\n       Para que ello sea posible es necesario que verifique que, dentro de el menú de Excel: Herramientas, Macro, Seguridad, Nivel de seguridad, marque la opción \"Medio\".\n       Esto no desprotege su equipo. Tan sólo le pedirá que autorice la ejecución."]
[]
[]
[]
[]
[]
[]
[]
[]
[]
[null,null,null,null,"INGRESE AQUÍ EL NOMBRE DE SU EMPRESA"]

{"sheet":"CRITERIO 1 - LIDERAZGO","index":1,"n_rows":20,"n_cols":25,"rows_kept":20,"cut":false,"hidden":false,"merged":[[4,10,4,11],[4,0,4,4],[9,0,9,4],[10,0,10,4],[5,0,5,4],[6,0,6,4],[5,10,16,11],[11,0,11,4],[15,0,15,4],[16,0,16,4],[19,0,20,4],[18,0,18,4],[17,0,17,4],[17,10,17,11],[17,6,17,9],[0,3,3,7],[14,0,14,4],[8,0,8,4],[13,0,13,4],[12,0,12,4],[7,0,7,4]]}
[null,null,null,"Hoja de Evaluación/Autoevaluación\nModelo PREMIO COMPROMISO CON LA GESTIÓN\nCRITERIO 1 - LIDERAZGO.\nUTILICE LA COLUMNA \"G\" PARA SELECCIONAR SU AUTOEVALUACIÓN",null,null,null,null,null,null,null,null,null,null,"lista",1,null,null,null,null,null,null,null,null,{"$f":"COUNTBLANK(G6:G17)","v":0}]
[null,null,null,null,null,null,null,null,null,null,null,null,null,null,null,2,null,null,null,null,null,null,{"$f":"60/300*(+J6+J7+J8+J9+J10+J11+J12+J13+J14+J15+J16+J17)","v":7.4},null,1]
[null,null,null,null,null,null,null,null,null,null,null,null,null,null,null,3,null,null,null,null,null,null,null,null,2]
[null,null,null,null,null,null,null,null,null,null,null,null,null,null,null,4,null,null,null,null,null,null,null,null,3]
["LIDERAZGO",null,null,null,null,null,"Autoe\nva-\nluación","Puntos\nmáx.","Ponde-\nración","Puntos\nasig-\nnados.","PUNTAJE DEL\nCRITERIO",null,null,null,null,null,null,null,null,null,null,null,null,null,4]
["1.1  La gerencia define la Misión y Visión de la empresa.",null,null,null,null,null,1,5,{"$f":"+H6*G6","v":5},{"$f":"+H6*G6/5","v":1},{"$f":"+J6+J7+J8+J9+J10+J11+J12+J13+J14+J15+J16+J17","v":37},null,null,null,null,null,null,null,null,null,null,null,null,null,5]
["1.2 La gerencia establece los objetivos estratégicos para el logro de la Visión.",null,null,null,null,null,2,5,{"$f":"+H7*G7","v":10},{"$f":"+H7*G7/5","v":2}]
["1.3 La gerencia asegura que su plan estratégico está enfocado en la Misión y Visión de la empresa.",null,null,null,null,null,3,5,15,3]
["1.4 La gerencia elabora semestral o anualmente planes operativos de corto plazo para alcanzar los objetivos estratégicos, asignándoles los recursos necesarios para su ejecución.",null,null,null,null,null,4,5,20,4]
["1.5 La gerencia realiza al menos mensualmente reuniones de seguimiento de las metas y planes operativos en las que se toman decisiones.",null,null,null,null,null,5,5,25,5]
["1.6 La gerencia utiliza información operativa, financiera y comercial para la toma de decisiones de corto y mediano plazo.",null,null,null,null,null,1,5,5,1]
["1.7 La gerencia participa en asociaciones para prospectar nuevos negocios y/o uso de\nnuevas tecnologías.",null,null,null,null,null,2,5,10,2]
["1.8 La gerencia se capacita en temas de gestión de Calidad de empresas y Mejora Continua.",null,null,null,null,null,3,5,15,3]
["1.9 La gerencia comunica y educa en la cultura de la Calidad incluyendo el foco en los clientes.",null,null,null,null,null,4,5,20,4]
["1.10 La empresa no ha incumplido las leyes y normas contables, financieras, laborales y\nmedioambientales y realiza acciones mas allá de las obligatorias hacia la responsabilidad social",null,null,null,null,null,5,5,25,5]
["1.11 La gerencia implementa acciones para ser considerado un “Buen Vecino” en su  comunidad.",null,null,null,null,null,4,5,20,4]
["1.12 La organización es un contribuyente proactivo respecto al cuidado del medio ambiente.",null,null,null,null,null,3,5,15,3]
[{"$f":"IF(ISBLANK(INSTRUCTIVO!E26),\" \",INSTRUCTIVO!E26)","v":" "},null,null,null,null,null,"FECHA DE AUTOEVALUACION:",null,null,null,{"$f":"IF(INSTRUCTIVO!I27<>0,INSTRUCTIVO!I27,\" \")","v":" "}]
["A los efectos de la aplicaciòn del NIVEL de EVALUACIÖN tenga en cuenta que, en todos los casos:"]
["1 equivale a \"A\", 2 equivale a \"B\", 3 equivale a \"C\",  4 equivale a \"D\" y 5 equivale a \"E\" "]

{"sheet":"CRITERIO 2 D. DE LAS PERSONAS","index":2,"n_rows":19,"n_cols":25,"rows_kept":19,"cut":false,"hidden":false,"merged":[[5,10,5,11],[5,0,5,4],[6,10,15,11],[16,6,16,9],[16,10,16,11],[10,0,10,4],[11,0,11,4],[6,0,6,4],[7,0,7,4],[16,0,16,4],[17,0,17,4],[18,0,19,4],[0,3,3,7],[14,0,14,4],[15,0,15,4],[12,0,12,4],[13,0,13,4],[8,0,8,4],[9,0,9,4]]}
[null,null,null,"Hoja de Evaluación/Autoevaluación\nModelo PREMIO COMPROMISO CON LA GESTIÓN\nCRITERIO 2  - DESARROLLO DE LAS PERSONAS\nUTILICE LA COLUMNA \"G\" PARA SELECCIONAR SU AUTOEVALUACIÓN",null,null,null,null,null,null,null,null,null,null,"lista",1,null,null,null,null,null,null,null,null,{"$f":"COUNTBLANK(G7:G16)","v":0}]
[null,null,null,null,null,null,null,null,null,null,null,null,null,null,null,2]
[null,null,null,null,null,null,null,null,null,null,null,null,null,null,null,3]
[null,null,null,null,null,null,null,null,null,null,null,null,null,null,null,4]
[null,null,null,null,null,null,null,null,null,null,null,null,null,null,null,5]
["DESARROLLO DE LAS PERSONAS",null,null,null,null,null,"Autoeva-\nluación","Puntos\nmáx.","Ponde-\nración","Puntos\nasig-\nnados.","PUNTAJE DEL\nCRITERIO"]
["2.1 Se da a conocer a todas las personas de la organización la Misión, Visión, y objetivos estratégicos de la empresa.",null,null,null,null,null,5,8,{"$f":"+H7*G7","v":40},{"$f":"+H7/5*G7","v":8},{"$f":"60/300*(+I7+I8+I9+I10+I11+I12+I13+I14+I15+I16+I17+I18)","v":52.800000000000004}]
["2.2 Las metas de todas las personas se originan en los objetivos estratégicos y planes operativos de la empresa.",null,null,null,null,null,4,8,32,{"$f":"+H8/5*G8","v":6.4}]
["2.3 Se capacita al personal en lo necesario para hacer bien su trabajo, ejecutar los planes operativos de la empresa y promover su crecimiento personal.",null,null,null,null,null,3,8,24,4.8000000000000007]
["2.4 Se capacita al personal en lo necesario para ejecutar los nuevos planes operativos de la empresa.",null,null,null,null,null,2,8,16,3.2]
["2.5 Se retroalimenta, al menos anualmente, a las personas en función de la evaluación de su desempeño en el trabajo.",null,null,null,null,null,1,8,8,1.6]
["2.6 Se entrega reconocimiento y estímulo al personal de buen desempeño.",null,null,null,null,null,2,8,16,3.2]
["2.7 Se mide la satisfacción de las personas que trabajan en la empresa.",null,null,null,null,null,3,8,24,4.8000000000000007]
["2.8 Se asegura la participación y colaboración de las personas en la mejora de los procesos.",null,null,null,null,null,4,8,32,6.4]
["2.9 Se aseguran condiciones físicas y ambientales adecuadas para el lugar de trabajo. ",null,null,null,null,null,5,8,40,8]
["2.10 Se aseguran condiciones adecuadas de salud y seguridad del personal en su trabajo.",null,null,null,null,null,4,8,32,6.4]
[{"$f":"IF(ISBLANK(INSTRUCTIVO!E26),\" \",INSTRUCTIVO!E26)","v":" "},null,null,null,null,null,"FECHA DE AUTOEVALUACION:",null,null,null,{"$f":"IF(INSTRUCTIVO!I27<>0,INSTRUCTIVO!I27,\" \")","v":" "}]
["A los efectos de la aplicaciòn del NIVEL de EVALUACIÖN tenga en cuenta que, en todos los casos:"]
["1 equivale a \"A\", 2 equivale a \"B\", 3 equivale a \"C\",  4 equivale a \"D\" y 5 equivale a \"E\" "]

{"sheet":"CRITERIO 3 CLIENTE EXTERNO","index":3,"n_rows":19,"n_cols":25,"rows_kept":19,"cut":false,"hidden":false,"merged":[[17,0,17,4],[18,0,19,4],[16,10,16,11],[6,10,6,11],[6,0,6,4],[11,0,11,4],[15,0,15,4],[7,10,15,11],[13,0,13,4],[14,0,14,4],[0,3,5,7],[7,0,7,4],[8,0,8,4],[16,6,16,9],[12,0,12,4],[16,0,16,4],[9,0,9,4],[10,0,10,4]]}
[null,null,null,"Hoja de Evaluación/Autoevaluación\nModelo PREMIO COMPROMISO CON LA GESTIÓN\nCRITERIO  3 - INTERÉS POR EL CLIENTE EXTERNO\nUTILICE LA COLUMNA \"G\" PARA SELECCIONAR SU AUTOEVALUACIÓN",null,null,null,null,null,null,null,null,null,null,"lista",1,null,null,null,null,null,null,null,null,{"$f":"COUNTBLANK(G8:G16)","v":0}]
[null,null,null,null,null,null,null,null,null,null,null,null,null,null,null,2]
[null,null,null,null,null,null,null,null,null,null,null,null,null,null,null,3]
[null,null,null,null,null,null,null,null,null,null,null,null,null,null,null,4]
[null,null,null,null,null,null,null,null,null,null,null,null,null,null,null,5]
[]
["INTERÉS POR EL CLIENTE EXTERNO",null,null,null,null,null,"Autoeva-\nluación","Puntos\nmáx.","Ponde-\nración","Puntos\nasig-\nnados.","PUNTAJE DEL\nCRITERIO"]
["3.1 La empresa identifica los segmentos de su mercado objetivo.",null,null,null,null,null,2,10,{"$f":"+H8*G8","v":20},{"$f":"+H8/5*G8","v":4},{"$f":"60/300*(+I8+I9+I10+I11+I12+I13+I14+I15+I16+I17+I18+I19)","v":57.800000000000004}]
["3.2 La empresa identifica a sus clientes más importantes y los requisitos de sus clientes actuales y potenciales.",null,null,null,null,null,3,10,30,6]
["3.3 La empresa utiliza una base de datos de clientes para apoyar sus actividades de venta y postventa.",null,null,null,null,null,4,9,36,7.2]
["3.4 La empresa da a conocer al mercado potencial sus productos y servicios.",null,null,null,null,null,5,9,45,9]
["3.5 La empresa mide la satisfacción de sus clientes.",null,null,null,null,null,3,10,30,6]
["3.6 La empresa identifica los motivos de satisfacción de sus clientes.",null,null,null,null,null,2,10,20,4]
["3.7 La empresa define la forma como se debe atender a los clientes y los estándares de servicio para incrementar su satisfacción. ",null,null,null,null,null,4,9,36,7.2]
["3.8 La empresa registra y resuelve en forma eficaz todas las quejas y reclamos de sus clientes.",null,null,null,null,null,5,9,45,9]
["3.9 La empresa desarrolla acciones para conocer a su competencia.",null,null,null,null,null,3,9,27,5.4]
[{"$f":"IF(ISBLANK(INSTRUCTIVO!E26),\" \",INSTRUCTIVO!E26)","v":" "},null,null,null,null,null,"FECHA DE AUTOEVALUACION:",null,null,null,{"$f":"IF(INSTRUCTIVO!I27<>0,INSTRUCTIVO!I27,\" \")","v":" "}]
["A los efectos de la aplicaciòn del NIVEL de EVALUACIÖN tenga en cuenta que, en todos los casos:"]
["1 equivale a \"A\", 2 equivale a \"B\", 3 equivale a \"C\",  4 equivale a \"D\" y 5 equivale a \"E\" "]

{"sheet":"CRITERIO 4 GESTION PROCESOS","index":4,"n_rows":16,"n_cols":25,"rows_kept":16,"cut":false,"hidden":false,"merged":[[15,0,16,4],[0,3,5,7],[7,10,12,11],[9,0,9,4],[10,0,10,4],[6,10,6,11],[6,0,6,4],[11,0,11,4],[12,0,12,4],[14,0,14,4],[13,6,13,9],[7,0,7,4],[8,0,8,4],[13,0,13,4],[13,10,13,11]]}
[null,null,null,"Hoja de Evaluación/Autoevaluación\nModelo PREMIO COMPROMISO CON LA GESTIÓN\nCRITERIO  4 - GESTIÓN Y MEJORA DE LOS PROCESOS\nUTILICE LA COLUMNA \"G\" PARA SELECCIONAR SU AUTOEVALUACIÓN",null,null,null,null,null,null,null,null,null,null,"lista",1,null,null,null,null,null,null,null,null,{"$f":"COUNTBLANK(G8:G13)","v":0}]
[null,null,null,null,null,null,null,null,null,null,null,null,null,null,null,2]
[null,null,null,null,null,null,null,null,null,null,null,null,null,null,null,3]
[null,null,null,null,null,null,null,null,null,null,null,null,null,null,null,4]
[null,null,null,null,null,null,null,null,null,null,null,null,null,null,null,5]
[]
["GESTIÓN Y MEJORA DE LOS PROCESOS",null,null,null,null,null,"Autoeva-\nluación","Puntos\nmáx.","Ponde-\nración","Puntos\nasig-\nnados.","PUNTAJE DEL\nCRITERIO"]
["4.1 La empresa se asegura que las características de sus productos y servicios se ajustan a la información de expectativas, satisfacción y reclamos de sus clientes.",null,null,null,null,null,4,20,{"$f":"+H8*G8","v":80},{"$f":"+H8/5*G8","v":16},{"$f":"125/625*(+I8+I9+I10+I11+I12+I13)","v":87}]
[" 4.2 La empresa mide la calidad de sus principales productos y/o servicios.",null,null,null,null,null,5,20,100,20]
["4.3 La empresa mide el desempeño de sus procesos clave.",null,null,null,null,null,3,25,75,15]
["4.4 La empresa determina los procesos prioritarios de las áreas de apoyo en su organización.",null,null,null,null,null,2,20,40,8]
["4.5 La empresa evita que sus productos y procesos dañen el medio ambiente.",null,null,null,null,null,3,20,60,12]
["4.6 La empresa mide el desempeño de sus proveedores principales.",null,null,null,null,null,4,20,80,16]
[{"$f":"IF(ISBLANK(INSTRUCTIVO!E26),\" \",INSTRUCTIVO!E26)","v":" "},null,null,null,null,null,"FECHA DE AUTOEVALUACION",null,null,null,{"$f":"IF(INSTRUCTIVO!I27<>0,INSTRUCTIVO!I27,\" \")","v":" "}]
["A los efectos de la aplicaciòn del NIVEL de EVALUACIÖN tenga en cuenta que, en todos los casos:"]
["1 equivale a \"A\", 2 equivale a \"B\", 3 equivale a \"C\",  4 equivale a \"D\" y 5 equivale a \"E\" "]

{"sheet":"CRITERIO 5 RESULTADOS","index":5,"n_rows":25,"n_cols":25,"rows_kept":25,"cut":false,"hidden":false,"merged":[[0,3,5,9],[11,0,11,11],[9,0,9,4],[10,0,10,4],[6,10,6,11],[6,0,6,4],[7,0,7,11],[24,0,25,4],[8,24,10,24],[12,24,13,24],[15,24,17,24],[19,24,20,24],[21,0,21,9],[21,10,21,11],[19,10,20,11],[16,0,16,4],[17,0,17,4],[22,6,22,9],[22,10,22,11],[19,0,19,4],[20,0,20,4],[22,0,22,4],[12,10,13,11],[13,0,13,4],[14,0,14,11],[8,10,10,11],[8,0,8,4],[23,0,23,4],[15,10,17,11],[12,0,12,4],[15,0,15,4],[18,0,18,11]]}
[null,null,null,"Hoja de Evaluación/Autoevaluación\nModelo PREMIO COMPROMISO CON LA GESTIÓN\nCRITERIO 5 - RESULTADOS \nUTILICE LA COLUMNA \"G\" PARA SELECCIONAR SU AUTOEVALUACIÓN",null,null,null,null,null,null,null,null,null,null,"lista",1,null,null,null,null,null,null,null,null,{"$f":"SUM(Y9:Y21)","v":0}]
[null,null,null,null,null,null,null,null,null,null,null,null,null,null,null,2]
[null,null,null,null,null,null,null,null,null,null,null,null,null,null,null,3]
[null,null,null,null,null,null,null,null,null,null,null,null,null,null,null,4]
[null,null,null,null,null,null,null,null,null,null,null,null,null,null,null,5]
[]
["RESULTADOS",null,null,null,null,null,"Autoeva-\nluación","Puntos\nmáx.","Ponde-\nración","Puntos\nasig-\nnados.","PUNTAJE "]
["5. 1 CONDUCCIÓN DE LA ORGANIZACIÓN"]
["5.1.1 Utilidad de la empresa.",null,null,null,null,null,1,15,{"$f":"+H9*G9","v":15},{"$f":"+H9/5*G9","v":3},{"$f":"150/750*(+I9+I10+I11)","v":18},null,null,null,null,null,null,null,null,null,null,null,null,null,{"$f":"COUNTBLANK(G9:G11)","v":0}]
["5.1.2  Rentabilidad de la empresa.",null,null,null,null,null,2,15,{"$f":"+H10*G10","v":30},{"$f":"+H10/5*G10","v":6}]
["5.1.3 Ventas por empleado.",null,null,null,null,null,3,15,{"$f":"+H11*G11","v":45},{"$f":"+H11/5*G11","v":9}]
["5.2 INTERÉS POR EL CLIENTE EXTERNO",null,null,null,null,null,5,null,{"$f":"+H12*G12","v":0},{"$f":"+H12/5*G12","v":0}]
["5.2.1 Volumen de ventas.",null,null,null,null,null,4,15,{"$f":"+H13*G13","v":60},{"$f":"+H13/5*G13","v":12},{"$f":"150/750*(+I13+I14)","v":27},null,null,null,null,null,null,null,null,null,null,null,null,null,{"$f":"COUNTBLANK(G13:G14)","v":0}]
["5.2.2 Satisfacción de los clientes.",null,null,null,null,null,5,15,{"$f":"+H14*G14","v":75},{"$f":"+H14/5*G14","v":15}]
["5.3 DESARROLLO DE LAS PERSONAS",null,null,null,null,null,5,null,0,0]
["5.3.1 Satisfacción de empleados.",null,null,null,null,null,4,15,60,12,{"$f":"150/750*(+I16+I17+I18)","v":27},null,null,null,null,null,null,null,null,null,null,null,null,null,{"$f":"COUNTBLANK(G16:G18)","v":0}]
["5.3.2 Horas hombre de capacitación.",null,null,null,null,null,3,15,45,9]
["5.3.3 Seguridad en el trabajo.",null,null,null,null,null,2,15,30,6]
["5.4 GESTIÓN Y MEJORA DE LOS PROCESOS",null,null,null,null,null,5,null,0,0,{"$f":"125/625*(+I19+I20+I21+I22+#REF!+#REF!)","v":{"$error":"#REF!"}}]
["5.4.1 Desempeño de los principales procesos.",null,null,null,null,null,1,15,15,3,{"$f":"150/750*(+I20+I21)","v":9},null,null,null,null,null,null,null,null,null,null,null,null,null,{"$f":"COUNTBLANK(G20:G21)","v":0}]
["5.4.2 Calidad de los productos y servicios.",null,null,null,null,null,2,15,30,6]
["TOTAL DEL CRITERIO",null,null,null,null,null,null,null,null,null,{"$f":"+K20+K16+K13+K9","v":81}]
[{"$f":"IF(ISBLANK(INSTRUCTIVO!E26),\" \",INSTRUCTIVO!E26)","v":" "},null,null,null,null,null,"FECHA DE AUTOEVALUACION:",null,null,null,{"$f":"IF(INSTRUCTIVO!I27<>0,INSTRUCTIVO!I27,\" \")","v":" "}]
["A los efectos de la aplicaciòn del NIVEL de EVALUACIÖN tenga en cuenta que, en todos los casos:"]
["1 equivale a \"A\", 2 equivale a \"B\", 3 equivale a \"C\",  4 equivale a \"D\" y 5 equivale a \"E\" "]

{"sheet":"RESUMEN DE EVALUACION","index":6,"n_rows":12,"n_cols":25,"rows_kept":12,"cut":false,"hidden":false,"merged":[[11,11,11,12],[11,2,11,3],[11,4,11,8],[3,7,4,9],[0,7,2,9],[10,7,10,12],[0,2,3,4],[4,0,4,3],[10,0,10,3],[5,0,5,3],[7,0,7,3],[8,0,8,3],[9,0,9,3],[6,0,6,3]]}
[null,null,"MODELO PREMIO COMPROMISO                     CON LA MEJORA CONTINUA PyMES\nRESUMEN DE EVALUACIÓN GENERAL",null,null,null,null,"Estado de su evaluación.\n",null,null,null,null,null,null,null,null,null,null,null,null,null,null,null,null,{"$f":"SUM(I6:I10)","v":0}]
[]
[]
[null,null,null,null,null,null,null,"No deberían quedar prácticas sin evaluar."]
["CRITERIOS",null,null,null,"Puntaje\nmàximo","Su\nEvaluación"," % de\navance"]
["Criterio 1: LIDERAZGO",null,null,null,60,{"$f":"+'CRITERIO 1 - LIDERAZGO'!K6","v":37},{"$f":"+F6/E6*100","v":61.666666666666671},{"$f":"IF('CRITERIO 1 - LIDERAZGO'!Y1>0,\"FALTA EVALUAR\",\"COMPLETA \")","v":"COMPLETA "},{"$f":"IF('CRITERIO 1 - LIDERAZGO'!Y1>0,'CRITERIO 1 - LIDERAZGO'!Y1,\"  \")","v":"  "},{"$f":"IF('CRITERIO 1 - LIDERAZGO'!Y1>0,\"PRACTICAS.\",\" \")","v":" "}]
["Criterio 2: DESARROLLO DE LAS PERSONAS",null,null,null,80,{"$f":"+'CRITERIO 2 D. DE LAS PERSONAS'!K7","v":52.800000000000004},66,{"$f":"IF('CRITERIO 2 D. DE LAS PERSONAS'!Y1>0,\"FALTA EVALUAR\",\"COMPLETA \")","v":"COMPLETA "},{"$f":"IF('CRITERIO 2 D. DE LAS PERSONAS'!Y1>0,'CRITERIO 2 D. DE LAS PERSONAS'!Y1,\" \")","v":" "},{"$f":"IF('CRITERIO 2 D. DE LAS PERSONAS'!Y1>0,\"PRACTICAS\",\" \")","v":" "}]
["Criterio 3: INTERÉS POR EL CLIENTE EXTERNO",null,null,null,85,{"$f":"+'CRITERIO 3 CLIENTE EXTERNO'!K8","v":57.800000000000004},68,{"$f":"IF('CRITERIO 3 CLIENTE EXTERNO'!Y1>0,\"FALTA EVALUAR\",\"COMPLETA\")","v":"COMPLETA"},{"$f":"IF('CRITERIO 3 CLIENTE EXTERNO'!Y1>0,'CRITERIO 3 CLIENTE EXTERNO'!Y1,\" \")","v":" "},{"$f":"IF('CRITERIO 3 CLIENTE EXTERNO'!Y1>0,\"PRACTICAS\",\" \")","v":" "}]
["Criterio 4: GESTIÓN Y MEJORA DE LOS PROCESOS",null,null,null,125,{"$f":"+'CRITERIO 4 GESTION PROCESOS'!K8","v":87},69.599999999999994,{"$f":"IF('CRITERIO 4 GESTION PROCESOS'!Y1>0,\"FALTA EVALUAR\",\"COMPLETO\")","v":"COMPLETO"},{"$f":"IF('CRITERIO 4 GESTION PROCESOS'!Y1,'CRITERIO 4 GESTION PROCESOS'!Y1,\" \")","v":" "},{"$f":"IF('CRITERIO 4 GESTION PROCESOS'!Y1>0,\"PRACTICAS\",\" \")","v":" "}]
["Criterio 5: RESULTADOS",null,null,null,150,{"$f":"+'CRITERIO 5 RESULTADOS'!K22","v":81},54,{"$f":"IF('CRITERIO 5 RESULTADOS'!Y1>0,\"FALTA EVALUAR\",\"COMPLETA\")","v":"COMPLETA"},{"$f":"IF('CRITERIO 5 RESULTADOS'!Y1,'CRITERIO 5 RESULTADOS'!Y1,\" \")","v":" "},{"$f":"IF('CRITERIO 5 RESULTADOS'!Y1>0,\"PRACTICAS\",\" \")","v":" "}]
["Total:",null,null,null,500,{"$f":"SUM(F6:F10)","v":315.60000000000002},63.120000000000012,"Haga CLICK arriba para preparar y enviar la información al CONACYT"]
[null,null,"Organización:",null,{"$f":"IF(ISBLANK(INSTRUCTIVO!E26),\" \",INSTRUCTIVO!E26)","v":" "},null,null,null,null,null,null,{"$f":"IF(INSTRUCTIVO!I27<>0,INSTRUCTIVO!I27,\" \")","v":" "}]

{"sheet":"VIENDO RESULTADOS","index":7,"n_rows":45,"n_cols":26,"rows_kept":45,"cut":false,"hidden":false,"merged":[]}
[]
[]
["En la última pestaña \"RESUMEN DE EVALUACIÓN\" usted encontrará el resultado final de su trabajo.",null,null,null,null,null,null,null,null,null,null,null,null,null,null,null,null,null,null,null,null,null,null,null,null,"En la última pestaña \"RESUMEN DE EVALUACIÓN\" usted encontrará el resultado final de su trabajo."]
["Por un lado tiene la comparación numérica, Criterio a Criterio con su  puntaje y % de avance destacable, significativo y medio:",null,null,null,null,null,null,null,null,null,null,null,null,null,null,null,null,null,null,null,null,null,null,null,null,"Por un lado tiene la comparación numérica, Criterio a Criterio con su  puntaje y % de avance destacable, significativo y medio:"]
[]
[]
[]
[]
[]
[]
[]
[]
[]
[]
[]
[]
[]
[]
[]
[]
[]
["Más abajo encuentra un gráfico que le permite visualizar esos valores comparando los puntajes máximos posibles"]
["de cada área con los de su apreciación:"]
[]
[]
[]
[]
[]
[]
[]
[]
[]
[]
[]
[]
[]
[]
[]
[]
[null,null,null,null,null,null,null,null,null,null,null,null,null,null,null,null,null,null,null,null,null,null,null,null,null,"Más abajo encuentra un gráfico que le permite visualizar esos valores comparando los puntajes máximos posibles"]
[null,null,null,null,null,null,null,null,null,null,null,null,null,null,null,null,null,null,null,null,null,null,null,null,null,"de cada área con los de su apreciación:"]
[]
[null,null,null,null,null,null,null,null,null,null,null,null,null,null,null,null,null,null,null,null,null,null,null,null,null,"El área mayor es la de puntaje máximo posible. La otra, normalmente más pequeña, es su evaluación. Le facilita ver dónde"]
["El área mayor es la de puntaje máximo posible. La otra, normalmente más pequeña, es su evaluación. Le facilita ver dónde",null,null,null,null,null,null,null,null,null,null,null,null,null,null,null,null,null,null,null,null,null,null,null,null,"debe enfocar sus esfuerzos."]
["debe enfocar sus esfuerzos."]

{"sheet":"FORMA","index":8,"n_rows":7,"n_cols":1,"rows_kept":7,"cut":false,"hidden":false,"merged":[]}
[]
[]
["Tal como lo leyó en el Modelo cada Criterio tiene un puntaje global y, a su vez, cada uno de ellos contiene un número variable de prácticas"]
["que también tienen su propio puntaje."]
["No es necesario que realice cálculos de ningún tipo. Cuando posicione el ratón sobre cualquiera de las celdas de calificación, (columna"]
["\"G\"), se desplegará una lista con los valores posibles del 1 al 5. Seleccione el adecuado y haga Click. El valor ingresa automáticamente."]
["El resto de los cálculos se van haciendo en tiempo real. El puntaje general del criterio va apareciendo a su derecha."]

{"sheet":"CONTENIDO","index":9,"n_rows":25,"n_cols":73,"rows_kept":25,"cut":false,"hidden":false,"merged":[]}
[null,null,null,null,null,null,null,null,null,null,null,null,null,null,null,null,null,null,null,null,null,null,null,null,null,null,"1.1","1.12","1.3","1.4","1.5","1.6","1.7","1.8","1.9","1.10","1.11","1.12","2.1","2.2","2.3","2.4","2.5","2.6","2.7","2.8","2.9","2.10","3.1","3.2","3.3","3.4","3.5","3.6","3.7","3.8","3.9","4.1","4.2","4.3","4.4","4.5","4.6","5.1.1","5.1.2","5.1.3","5.2.1","5.2.2","5.3.1","5.3.2","5.3.3","5.4.1","5.4.2"]
[null,null,null,null,null,null,null,null,null,null,null,null,null,null,null,null,null,null,null,null,null,null,null,null,null,null,{"$f":"+'CRITERIO 1 - LIDERAZGO'!J6","v":1},{"$f":"+'CRITERIO 1 - LIDERAZGO'!J7","v":2},{"$f":"+'CRITERIO 1 - LIDERAZGO'!J8","v":3},{"$f":"+'CRITERIO 1 - LIDERAZGO'!J9","v":4},{"$f":"+'CRITERIO 1 - LIDERAZGO'!J10","v":5},{"$f":"+'CRITERIO 1 - LIDERAZGO'!J11","v":1},{"$f":"+'CRITERIO 1 - LIDERAZGO'!J12","v":2},{"$f":"+'CRITERIO 1 - LIDERAZGO'!J13","v":3},{"$f":"+'CRITERIO 1 - LIDERAZGO'!J14","v":4},{"$f":"+'CRITERIO 1 - LIDERAZGO'!J15","v":5},{"$f":"+'CRITERIO 1 - LIDERAZGO'!J16","v":4},{"$f":"+'CRITERIO 1 - LIDERAZGO'!J17","v":3},{"$f":"+'CRITERIO 2 D. DE LAS PERSONAS'!J7","v":8},{"$f":"+'CRITERIO 2 D. DE LAS PERSONAS'!J8","v":6.4},{"$f":"+'CRITERIO 2 D. DE LAS PERSONAS'!J9","v":4.8000000000000007},{"$f":"+'CRITERIO 2 D. DE LAS PERSONAS'!J10","v":3.2},{"$f":"+'CRITERIO 2 D. DE LAS PERSONAS'!J11","v":1.6},{"$f":"+'CRITERIO 2 D. DE LAS PERSONAS'!J12","v":3.2},{"$f":"+'CRITERIO 2 D. DE LAS PERSONAS'!J13","v":4.8000000000000007},{"$f":"+'CRITERIO 2 D. DE LAS PERSONAS'!J14","v":6.4},{"$f":"+'CRITERIO 2 D. DE LAS PERSONAS'!J15","v":8},{"$f":"+'CRITERIO 2 D. DE LAS PERSONAS'!J16","v":6.4},{"$f":"+'CRITERIO 3 CLIENTE EXTERNO'!J8","v":4},{"$f":"+'CRITERIO 3 CLIENTE EXTERNO'!J9","v":6},{"$f":"+'CRITERIO 3 CLIENTE EXTERNO'!J10","v":7.2},{"$f":"+'CRITERIO 3 CLIENTE EXTERNO'!J11","v":9},{"$f":"+'CRITERIO 3 CLIENTE EXTERNO'!J12","v":6},{"$f":"+'CRITERIO 3 CLIENTE EXTERNO'!J13","v":4},{"$f":"+'CRITERIO 3 CLIENTE EXTERNO'!J14","v":7.2},{"$f":"+'CRITERIO 3 CLIENTE EXTERNO'!J15","v":9},{"$f":"+'CRITERIO 3 CLIENTE EXTERNO'!J16","v":5.4},{"$f":"+'CRITERIO 4 GESTION PROCESOS'!J8","v":16},{"$f":"+'CRITERIO 4 GESTION PROCESOS'!J9","v":20},{"$f":"+'CRITERIO 4 GESTION PROCESOS'!J10","v":15},{"$f":"+'CRITERIO 4 GESTION PROCESOS'!J11","v":8},{"$f":"+'CRITERIO 4 GESTION PROCESOS'!J12","v":12},{"$f":"+'CRITERIO 4 GESTION PROCESOS'!J13","v":16},{"$f":"+'CRITERIO 5 RESULTADOS'!J9","v":3},{"$f":"+'CRITERIO 5 RESULTADOS'!J10","v":6},{"$f":"+'CRITERIO 5 RESULTADOS'!J11","v":9},{"$f":"+'CRITERIO 5 RESULTADOS'!J13","v":12},{"$f":"+'CRITERIO 5 RESULTADOS'!J14","v":15},{"$f":"+'CRITERIO 5 RESULTADOS'!J16","v":12},{"$f":"+'CRITERIO 5 RESULTADOS'!J17","v":9},{"$f":"+'CRITERIO 5 RESULTADOS'!J18","v":6},{"$f":"+'CRITERIO 5 RESULTADOS'!J20","v":3},{"$f":"+'CRITERIO 5 RESULTADOS'!J21","v":6}]
["En este libro de Excel Ud. tiene todo lo necesario para realizar su autoevaluación de forma sencilla y cuantas veces desee."]
["Se compone de cinco hojas, una por cada Criterio, identificadas en las pestañas que se ven abajo. Tal como lo indica la ilustración:"]
[]
[]
[]
[]
[]
[]
[]
[]
[]
[]
[]
[]
[]
[]
[]
[]
[]
[]
["Haciendo Click con el mouse en cada una de ellas selecciona con la que desea trabajar."]
["No es necesario realizar toda la autoevaluación de una vez. Si le es más cómodo puede ir grabando lo realizado utilizando el menú de"]
["Excel: \"Archivo, guardar\". Luego podrá continuar desde dónde quedó e inclusive, modificar datos."]

{"sheet":"     ","index":10,"n_rows":8,"n_cols":52,"rows_kept":8,"cut":false,"hidden":false,"merged":[[7,11,12,30],[0,0,0,4],[1,0,1,4]]}
[null,null,null,null,null,"1.1","1.12","1.3","1.4","1.5","1.6","1.7","1.8","1.9","1.10","1.11","1.12","2.1","2.2","2.3","2.4","2.5","2.6","2.7","2.8","2.9","2.10","3.1","3.2","3.3","3.4","3.5","3.6","3.7","3.8","3.9","4.1","4.2","4.3","4.4","4.5","4.6","5.1.1","5.1.2","5.1.3","5.2.1","5.2.2","5.3.1","5.3.2","5.3.3","5.4.1","5.4.2"]
[]
[]
[]
[]
[]
[]
[null,null,null,null,null,null,null,null,null,null,null,"Favor envíe esta HOJA a INACAL.\nPara ello utilice el menú de Excel. Haga click en \"archivo - enviar a - destinatario de correo - solo esta hoja\".\nComo destinatario ponga: \"tecnico@inacal.com.uy\", sin las comillas.\n\nGracias."]